fUST/lending_fUST_20250811
["ID","MTS","AMOUNT","RATE_DAILY","PERIOD"]
[378594156,1754920257705,-1491.89,0.00019726,2]
[378594157,1754920257715,-460.0,0.00019726,2]
[378594158,1754920257724,-1900.28,0.00019726,2]
[378594159,1754920257734,-460.0,0.00019726,2]
[378594160,1754920257744,-460.0,0.00019726,2]
[378594161,1754920257754,-460.0,0.00019726,2]
[378594162,1754920257764,-460.0,0.00019726,2]
[378594163,1754920257774,-460.0,0.00019726,2]
[378594164,1754920257784,-460.0,0.00019726,2]
[378594165,1754920257795,-460.0,0.00019726,2]
[378594166,1754920257805,-460.0,0.00019726,2]
[378594167,1754920257816,-460.0,0.00019726,2]
[378594168,1754920257826,-1306.9,0.00019726,2]
[378594169,1754920257836,-460.0,0.00019726,2]
[378594170,1754920257846,-3392.04,0.00019726,2]
[378594171,1754920257855,-460.0,0.00019726,2]
[378594172,1754920257866,-460.0,0.00019726,2]
[378594173,1754920257876,-460.0,0.00019726,2]
[378594174,1754920257885,-4000.25,0.00019726,2]
[378594175,1754920257895,-460.0,0.00019726,2]
[378594176,1754920257904,-460.0,0.00019726,2]
[378594177,1754920257915,-460.0,0.00019726,2]
[378594178,1754920257927,-465.81389947,0.00019726,2]
[378594179,1754920257936,-503.4,0.00019726,2]
[378594180,1754920257946,-1033.83,0.00019726,2]
[378594181,1754920257956,-460.0,0.00019726,2]
[378594182,1754920257970,-3048.09,0.00019726,2]
[378594183,1754920257980,-460.0,0.00019726,2]
[378594184,1754920257990,-654.47,0.00019726,2]
[378594185,1754920258000,-362.207323,0.00019726,2]
[378594186,1754920258010,-1017.51,0.00019726,2]
[378594187,1754920258020,-460.0,0.00019726,2]
[378594188,1754920258030,-362.207323,0.00019726,2]
[378594189,1754920258040,-460.0,0.00019726,2]
[378594190,1754920258050,-460.0,0.00019726,2]
[378594191,1754920258060,-1153.7,0.00019726,2]
[378594192,1754920258069,-460.0,0.00019726,2]
[378594193,1754920258079,-600.97,0.00019726,2]
[378594194,1754920258089,-460.0,0.00019726,2]
[378594195,1754920258098,-460.0,0.00019726,2]
[378594196,1754920258108,-460.0,0.00019726,2]
[378594197,1754920258117,-1023.53,0.00019726,2]
[378594198,1754920258127,-460.0,0.00019726,2]
[378594199,1754920258137,-460.0,0.00019726,2]
[378594200,1754920258147,-699.32,0.00019726,2]
[378594201,1754920258157,-460.0,0.00019726,2]
[378594202,1754920258166,-632.28,0.00019726,2]
[378594203,1754920258180,-567.86,0.00019726,2]
[378594204,1754920258190,-481.24,0.00019726,2]
[378594205,1754920258199,-313.55367865,0.00019726,2]
[378594206,1754920258208,-460.0,0.00019726,2]
[378594207,1754920258218,-859.26,0.00019726,2]
[378594208,1754920258227,-525.14,0.00019726,2]
[378594209,1754920258237,-667.57,0.00019726,2]
[378594210,1754920258246,-460.0,0.00019726,2]
[378594211,1754920258256,-598.56272317,0.00019726,2]
[378594212,1754920258266,-460.0,0.00019726,2]
[378594213,1754920258275,-748.51,0.00019726,2]
[378594214,1754920258285,-460.0,0.00019726,2]
[378594215,1754920258294,-694.07,0.00019726,2]
[378594216,1754920258303,-498.81,0.00019726,2]
[378594217,1754920258313,-543.53,0.00019726,2]
[378594218,1754920258323,-584.62,0.00019726,2]
[378594219,1754920258332,-460.0,0.00019726,2]
[378594220,1754920258342,-460.0,0.00019726,2]
[378594221,1754920258352,-479.96,0.00019726,2]
[378594222,1754920258362,-460.0,0.00019726,2]
[378594223,1754920258372,-3193.47,0.00019726,2]
[378594224,1754920258382,-3589.11,0.00019726,2]
[378594225,1754920258393,-3148.71,0.00019726,2]
[378594226,1754920258403,-460.0,0.00019726,2]
[378594227,1754920258416,-1050.86,0.00019726,2]
[378594228,1754920258429,-649.02,0.00019726,2]
[378594229,1754920258439,-460.0,0.00019726,2]
[378594230,1754920258449,-747.02,0.00019726,2]
[378594231,1754920258460,-2499.24,0.00019726,2]
[378594232,1754920258470,-460.0,0.00019726,2]
[378594233,1754920258481,-460.0,0.00019726,2]
[378594234,1754920258492,-707.8,0.00019726,2]
[378594235,1754920258502,-1153.31,0.00019726,2]
[378594236,1754920258512,-1923.79,0.00019726,2]
[378594237,1754920258522,-812.58,0.00019726,2]
[378594238,1754920258532,-460.0,0.00019726,2]
[378594239,1754920258542,-460.0,0.00019726,2]
[378594240,1754920258552,-2213.59,0.00019726,2]
[378594241,1754920258562,-151.0,0.00019726,2]
[378594242,1754920258572,-460.0,0.00019726,2]
[378594243,1754920258582,-460.0,0.00019726,2]
[378594244,1754920258592,-460.0,0.00019726,2]
[378594245,1754920258604,-460.0,0.00019726,2]
[378594246,1754920258614,-460.0,0.00019726,2]
[378594247,1754920258624,-468.36978581,0.00019726,2]
[378594248,1754920258634,-151.0,0.00019726,2]
[378594249,1754920258645,-151.0,0.00019726,2]
[378594250,1754920258654,-460.0,0.00019726,2]
[378594251,1754920258665,-460.0,0.00019726,2]
[378594252,1754920258676,-806.04,0.00019726,2]
[378594253,1754920258686,-151.0,0.00019726,2]
[378594254,1754920258698,-460.0,0.00019726,2]
[378594255,1754920258708,-233.748906,0.00019726,2]
[378594256,1754920258718,-460.0,0.00019726,2]
[378594257,1754920258728,-789.05,0.00019726,2]
[378594258,1754920258738,-233.748906,0.00019726,2]
[378594259,1754920258751,-460.0,0.00019726,2]
[378594260,1754920258767,-460.0,0.00019726,2]
[378594261,1754920258777,-460.0,0.00019726,2]
[378594262,1754920258787,-460.0,0.00019726,2]
[378594263,1754920258797,-983.81,0.00019726,2]
[378594264,1754920258807,-1091.54,0.00019726,2]
[378594265,1754920258817,-11204.65,0.00019726,2]
[378594266,1754920258827,-460.0,0.00019726,2]
[378594267,1754920258837,-151.0,0.00019726,2]
[378594268,1754920258846,-460.0,0.00019726,2]
[378594269,1754920258856,-793.03,0.00019726,2]
[378594270,1754920258866,-460.0,0.00019726,2]
[378594271,1754920258876,-460.0,0.00019726,2]
[378594272,1754920258886,-460.0,0.00019726,2]
[378594273,1754920258896,-460.0,0.00019726,2]
[378594274,1754920258905,-904.75,0.00019726,2]
[378594275,1754920258915,-1095.03,0.00019726,2]
[378594276,1754920258927,-460.0,0.00019726,2]
[378594277,1754920258936,-2107.18,0.00019726,2]
[378594278,1754920258946,-460.0,0.00019726,2]
[378594279,1754920258956,-460.0,0.00019726,2]
[378594280,1754920258966,-460.0,0.00019726,2]
[378594281,1754920258977,-460.0,0.00019726,2]
[378594282,1754920258986,-151.821824,0.00019726,2]
[378594283,1754920258996,-460.0,0.00019726,2]
[378594284,1754920259005,-250.0,0.00019726,2]
[378594285,1754920259015,-781.256,0.0001974,2]
[378594286,1754920259024,-179.1374617,0.0001974,2]
[378594287,1754920259034,-500.0,0.00019773,2]
[378594288,1754920259043,-441.697016,0.00019863,2]
[378594289,1754920259053,-949.63201855,0.00019868,2]
[378594290,1754920259063,-1500.0,0.00019868,2]
[378594291,1754920259073,-1500.0,0.00019868,2]
[378594292,1754920259083,-950.0687685,0.00019868,2]
[378594293,1754920259093,-1500.0,0.00019868,2]
[378594294,1754920259104,-1500.0,0.00019868,2]
[378594295,1754920259113,-322.9135319,0.00019868,2]
[378594296,1754920259123,-1500.0,0.00019868,2]
[378594297,1754920259132,-1500.0,0.00019868,2]
[378594298,1754920259141,-484.81535733,0.00019868,2]
[378594299,1754920259151,-307.03355461,0.00019868,2]
[378594300,1754920259161,-1021.6425844,0.00019868,2]
[378594301,1754920259170,-1500.0,0.00019868,2]
[378594302,1754920259182,-1309.01130451,0.00019868,2]
[378594303,1754920259192,-543.59259108,0.00019868,2]
[378594304,1754920259202,-1500.0,0.00019868,2]
[378594305,1754920259212,-1520.92936452,0.00019868,2]
[378594306,1754920259222,-1500.0,0.00019868,2]
[378594307,1754920259232,-1500.0,0.00019868,2]
[378594308,1754920259241,-1500.0,0.00019868,2]
[378594309,1754920259251,-1500.0,0.00019868,2]
[378594310,1754920259261,-1500.0,0.00019868,2]
[378594311,1754920259271,-500.0,0.00019873,2]
[378594312,1754920259280,-160.0,0.00019886,2]
[378594313,1754920259290,-1000.0,0.00019892,2]
[378594314,1754920259300,-1000.0,0.00019892,2]
[378594315,1754920259310,-500.0,0.00019894,2]
[378594316,1754920259320,-151.0,0.000199,2]
[378594317,1754920259335,-23200.18678118,0.000199,2]
[378594318,1754920259351,-3821.87844663,0.000199,2]
[378594319,1754920259362,-440.0,0.0001997,2]
[378594320,1754920259372,-151.0,0.0002,2]
[378594321,1754920259383,-460.0,0.0002,2]
[378594322,1754920259393,-460.0,0.0002,2]
[378594323,1754920259403,-151.0,0.0002,2]
[378594324,1754920259655,-151.775619,0.0002,2]
[378594325,1754920259666,-328.55990969,0.0002,2]
[378594326,1754920259677,-151.0,0.0002,4]
[378594327,1754920259687,-220.35764857,0.0002,2]
[378594328,1754920259697,-352.44816385,0.0002,2]
[378594329,1754920259706,-460.0,0.0002,2]
[378594330,1754920259716,-460.0,0.0002,2]
[378594331,1754920259726,-460.0,0.0002,2]
[378594332,1754920259736,-460.0,0.0002,2]
[378594333,1754920259746,-460.0,0.0002,2]
[378594334,1754920259760,-460.0,0.0002,2]
[378594335,1754920259770,-460.0,0.0002,2]
[378594336,1754920259779,-460.0,0.0002,2]
[378594337,1754920259789,-914.28,0.0002,2]
[378594338,1754920259800,-1058.46,0.0002,2]
[378594339,1754920259809,-460.0,0.0002,2]
[378594340,1754920259819,-502.92069249,0.0002,2]
[378594341,1754920259830,-460.0,0.0002,2]
[378594342,1754920259842,-368.96929608,0.0002,2]
[378594343,1754920259851,-460.0,0.0002,2]
[378594344,1754920259861,-464.67470522,0.0002,2]
[378594345,1754920259871,-460.0,0.0002,2]
[378594346,1754920259881,-620.37,0.0002,2]
[378594347,1754920259890,-460.0,0.0002,2]
[378594348,1754920259900,-460.0,0.0002,2]
[378594349,1754920259910,-460.0,0.0002,2]
[378594350,1754920259919,-460.0,0.0002,2]
[378594351,1754920259931,-460.0,0.0002,2]
[378594352,1754920259941,-460.0,0.0002,2]
[378594353,1754920259951,-460.0,0.0002,2]
[378594354,1754920259960,-460.0,0.0002,2]
[378594355,1754920259970,-460.0,0.0002,2]
[378594356,1754920259980,-713.8,0.0002,2]
[378594357,1754920259989,-460.0,0.0002,2]
[378594358,1754920259999,-460.0,0.0002,2]
[378594359,1754920260009,-460.0,0.0002,2]
[378594360,1754920260018,-831.94,0.0002,2]
[378594361,1754920260028,-481.07526605,0.0002,2]
[378594362,1754920260038,-460.0,0.0002,2]
[378594363,1754920260048,-606.05,0.0002,2]
[378594364,1754920260059,-460.0,0.0002,2]
[378594365,1754920260069,-712.91,0.0002,2]
[378594366,1754920260080,-460.0,0.0002,2]
[378594367,1754920260090,-460.0,0.0002,2]
[378594368,1754920260100,-460.0,0.0002,2]
[378594369,1754920260110,-460.0,0.0002,2]
[378594370,1754920260120,-754.71,0.0002,2]
[378594371,1754920260129,-554.47,0.0002,2]
[378594372,1754920260139,-460.0,0.0002,2]
[378594373,1754920260152,-1153.75,0.0002,2]
[378594374,1754920260162,-460.0,0.0002,2]
[378594375,1754920260173,-460.0,0.0002,2]
[378594376,1754920260185,-460.0,0.0002,2]
[378594377,1754920260195,-582.38,0.0002,2]
[378594378,1754920260205,-489.11,0.0002,2]
[378594379,1754920260216,-460.0,0.0002,2]
[378594380,1754920260227,-460.0,0.0002,2]
[378594381,1754920260238,-460.0,0.0002,2]
[378594382,1754920260248,-1297.88,0.0002,2]
[378594383,1754920260259,-460.0,0.0002,2]
[378594384,1754920260269,-698.19,0.0002,2]
[378594385,1754920260279,-460.0,0.0002,2]
[378594386,1754920260290,-545.49,0.0002,2]
[378594387,1754920260300,-460.0,0.0002,2]
[378594388,1754920260311,-460.0,0.0002,2]
[378594389,1754920260322,-460.0,0.0002,2]
[378594390,1754920260332,-460.0,0.0002,2]
[378594391,1754920260342,-682.49,0.0002,2]
[378594392,1754920260353,-616.38,0.0002,2]
[378594393,1754920260363,-477.78904969,0.0002,2]
[378594394,1754920260372,-460.0,0.0002,2]
[378594395,1754920260382,-460.0,0.0002,2]
[378594396,1754920260392,-680.65,0.0002,2]
[378594397,1754920260402,-460.0,0.0002,2]
[378594398,1754920260412,-724.01,0.0002,2]
[378594399,1754920260422,-486.12360049,0.0002,2]
[378594400,1754920260435,-460.0,0.0002,2]
[378594401,1754920260446,-603.71,0.0002,2]
[378594402,1754920260456,-1736.093811,0.0002,2]
[378594403,1754920260466,-460.0,0.0002,2]
[378594404,1754920260476,-1736.093811,0.0002,2]
[378594405,1754920260486,-460.0,0.0002,2]
[378594406,1754920260496,-460.0,0.0002,2]
[378594407,1754920260506,-1039.54,0.0002,2]
[378594408,1754920260517,-537.66,0.0002,2]
[378594409,1754920260527,-795.7,0.0002,2]
[378594410,1754920260537,-460.0,0.0002,2]
[378594411,1754920260547,-460.0,0.0002,2]
[378594412,1754920260556,-460.0,0.0002,2]
[378594413,1754920260567,-522.93,0.0002,2]
[378594414,1754920260577,-460.0,0.0002,2]
[378594415,1754920260587,-460.0,0.0002,2]
[378594416,1754920260599,-460.0,0.0002,2]
[378594417,1754920260611,-460.0,0.0002,2]
[378594418,1754920260621,-794.23,0.0002,2]
[378594419,1754920260631,-460.0,0.0002,2]
[378594420,1754920260642,-460.0,0.0002,2]
[378594421,1754920260652,-460.0,0.0002,2]
[378594422,1754920260662,-799.99,0.0002,2]
[378594423,1754920260672,-460.0,0.0002,2]
[378594424,1754920260685,-460.0,0.0002,2]
[378594425,1754920260696,-561.29059283,0.0002,2]
[378594426,1754920260706,-460.0,0.0002,2]
[378594427,1754920260715,-471.51,0.0002,2]
[378594428,1754920260725,-551.49,0.0002,2]
[378594429,1754920260735,-574.35,0.0002,2]
[378594430,1754920260745,-460.0,0.0002,2]
[378594431,1754920260756,-703.79,0.0002,2]
[378594432,1754920260766,-460.0,0.0002,2]
[378594433,1754920260776,-460.0,0.0002,2]
[378594434,1754920260786,-493.12,0.0002,2]
[378594435,1754920260795,-619.62,0.0002,2]
[378594436,1754920260805,-1416.79,0.0002,2]
[378594437,1754920260815,-460.0,0.0002,2]
[378594438,1754920260825,-460.0,0.0002,2]
[378594439,1754920260835,-460.0,0.0002,2]
[378594440,1754920260846,-2721.89,0.0002,2]
[378594441,1754920260856,-4958.4,0.0002,2]
[378594442,1754920260866,-504.73,0.0002,2]
[378594443,1754920260877,-460.0,0.0002,2]
[378594444,1754920260886,-460.0,0.0002,2]
[378594445,1754920260896,-460.0,0.0002,2]
[378594446,1754920260906,-723.37,0.0002,2]
[378594447,1754920260917,-460.0,0.0002,2]
[378594448,1754920260929,-577.43,0.0002,2]
[378594449,1754920260939,-157.0,0.0002,3]
[378594450,1754920260948,-157.0,0.0002,3]
[378594451,1754920260959,-157.0,0.0002,3]
[378594452,1754920260969,-460.0,0.0002,2]
[378594453,1754920260979,-478.03949035,0.0002,2]
[378594454,1754920260989,-460.0,0.0002,2]
[378594455,1754920260999,-460.0,0.0002,2]
[378594456,1754920261009,-460.0,0.0002,2]
[378594457,1754920261018,-460.0,0.0002,2]
[378594458,1754920261028,-596.14,0.0002,2]
[378594459,1754920261037,-460.0,0.0002,2]
[378594460,1754920261047,-460.0,0.0002,2]
[378594461,1754920261056,-460.0,0.0002,2]
[378594462,1754920261066,-460.0,0.0002,2]
[378594463,1754920261075,-460.0,0.0002,2]
[378594464,1754920261085,-769.21,0.0002,2]
[378594465,1754920261095,-1767.92,0.0002,2]
[378594466,1754920261106,-605.71,0.0002,2]
[378594467,1754920261117,-460.0,0.0002,2]
[378594468,1754920261126,-1432.7,0.0002,2]
[378594469,1754920261136,-460.0,0.0002,2]
[378594470,1754920261147,-677.11,0.0002,2]
[378594471,1754920261156,-1419.4,0.0002,2]
[378594472,1754920261166,-4628.27,0.0002,2]
[378594473,1754920261178,-460.0,0.0002,2]
[378594474,1754920261188,-460.0,0.0002,2]
[378594475,1754920261198,-460.0,0.0002,2]
[378594476,1754920261207,-460.0,0.0002,2]
[378594477,1754920261217,-460.0,0.0002,2]
[378594478,1754920261227,-800.64,0.0002,2]
[378594479,1754920261237,-460.0,0.0002,2]
[378594480,1754920261247,-507.23844565,0.0002,2]
[378594481,1754920261256,-604.56,0.0002,2]
[378594482,1754920261266,-460.0,0.0002,2]
[378594483,1754920261276,-566.75,0.0002,2]
[378594484,1754920261286,-460.0,0.0002,2]
[378594485,1754920261296,-460.0,0.0002,2]
[378594486,1754920261306,-460.0,0.0002,2]
[378594487,1754920261316,-460.0,0.0002,2]
[378594488,1754920261326,-722.6,0.0002,2]
[378594489,1754920261336,-515.23394182,0.0002,2]
[378594490,1754920261346,-1315.14,0.0002,2]
[378594491,1754920261356,-1144.55,0.0002,2]
[378594492,1754920261366,-556.38,0.0002,2]
[378594493,1754920261376,-460.0,0.0002,2]
[378594494,1754920261386,-460.0,0.0002,2]
[378594495,1754920261395,-460.0,0.0002,2]
[378594496,1754920261405,-460.0,0.0002,2]
[378594497,1754920261415,-460.0,0.0002,2]
[378594498,1754920261428,-460.0,0.0002,2]
[378594499,1754920261437,-460.0,0.0002,2]
[378594500,1754920261447,-2361.39,0.0002,2]
[378594501,1754920261457,-460.0,0.0002,2]
[378594502,1754920261466,-1312.88,0.0002,2]
[378594503,1754920261476,-460.0,0.0002,2]
[378594504,1754920261485,-460.0,0.0002,2]
[378594505,1754920261495,-460.0,0.0002,2]
[378594506,1754920261504,-460.0,0.0002,2]
[378594507,1754920261514,-460.0,0.0002,2]
[378594508,1754920261523,-460.0,0.0002,2]
[378594509,1754920261533,-460.0,0.0002,2]
[378594510,1754920261542,-4434.41,0.0002,2]
[378594511,1754920261551,-460.0,0.0002,2]
[378594512,1754920261562,-1178.61,0.0002,2]
[378594513,1754920261571,-1080.56,0.0002,2]
[378594514,1754920261581,-460.0,0.0002,2]
[378594515,1754920261592,-695.41,0.0002,2]
[378594516,1754920261605,-460.0,0.0002,2]
[378594517,1754920261615,-460.0,0.0002,2]
[378594518,1754920261625,-460.0,0.0002,2]
[378594519,1754920261636,-1734.73,0.0002,2]
[378594520,1754920261646,-851.18,0.0002,2]
[378594521,1754920261655,-697.14,0.0002,2]
[378594522,1754920261666,-460.0,0.0002,2]
[378594523,1754920261678,-863.88,0.0002,2]
[378594524,1754920261688,-460.0,0.0002,2]
[378594525,1754920261697,-460.0,0.0002,2]
[378594526,1754920261707,-460.0,0.0002,2]
[378594527,1754920261716,-460.0,0.0002,2]
[378594528,1754920261726,-730.54,0.0002,2]
[378594529,1754920261737,-500.0,0.0002,2]
[378594530,1754920261747,-460.0,0.0002,2]
[378594531,1754920261757,-460.0,0.0002,2]
[378594532,1754920261767,-460.0,0.0002,2]
[378594533,1754920261777,-460.0,0.0002,2]
[378594534,1754920261788,-460.0,0.0002,2]
[378594535,1754920261798,-881.5,0.0002,2]
[378594536,1754920261808,-460.0,0.0002,2]
[378594537,1754920261818,-460.0,0.0002,2]
[378594538,1754920261827,-460.0,0.0002,2]
[378594539,1754920261837,-460.0,0.0002,2]
[378594540,1754920261847,-798.3,0.0002,2]
[378594541,1754920261857,-1491.89,0.0002,2]
[378594542,1754920261867,-460.0,0.0002,2]
[378594543,1754920261876,-1900.28,0.0002,2]
[378594544,1754920261886,-460.0,0.0002,2]
[378594545,1754920261896,-460.0,0.0002,2]
[378594546,1754920261905,-460.0,0.0002,2]
[378594547,1754920261915,-460.0,0.0002,2]
[378594548,1754920261927,-460.0,0.0002,2]
[378594549,1754920261937,-460.0,0.0002,2]
[378594550,1754920261946,-460.0,0.0002,2]
[378594551,1754920261956,-460.0,0.0002,2]
[378594552,1754920261966,-460.0,0.0002,2]
[378594553,1754920261976,-1306.9,0.0002,2]
[378594554,1754920261986,-460.0,0.0002,2]
[378594555,1754920261996,-3392.04,0.0002,2]
[378594556,1754920262006,-397.01377283,0.0002,2]
[378594557,1754920262015,-460.0,0.0002,2]
[378594558,1754920262025,-460.0,0.0002,2]
[378594559,1754920262035,-4000.25,0.0002,2]
[378594560,1754920262045,-460.0,0.0002,2]
[378594561,1754920262055,-460.0,0.0002,2]
[378594562,1754920262065,-503.4,0.0002,2]
[378594563,1754920262075,-1033.83,0.0002,2]
[378594564,1754920262085,-460.0,0.0002,2]
[378594565,1754920262095,-3048.09,0.0002,2]
[378594566,1754920262105,-460.0,0.0002,2]
[378594567,1754920262114,-654.47,0.0002,2]
[378594568,1754920262124,-1017.51,0.0002,2]
[378594569,1754920262134,-460.0,0.0002,2]
[378594570,1754920262144,-460.0,0.0002,2]
[378594571,1754920262211,-460.0,0.0002,2]
[378594572,1754920262222,-1153.7,0.0002,2]
[378594573,1754920262231,-460.0,0.0002,2]
[378594574,1754920262240,-600.97,0.0002,2]
[378594575,1754920262249,-460.0,0.0002,2]
[378594576,1754920262259,-460.0,0.0002,2]
[378594577,1754920262268,-1023.53,0.0002,2]
[378594578,1754920262278,-460.0,0.0002,2]
[378594579,1754920262288,-460.0,0.0002,2]
[378594580,1754920262297,-460.0,0.0002,2]
[378594581,1754920262307,-699.32,0.0002,2]
[378594582,1754920262316,-460.0,0.0002,2]
[378594583,1754920262326,-632.28,0.0002,2]
[378594584,1754920262335,-567.86,0.0002,2]
[378594585,1754920262344,-481.24,0.0002,2]
[378594586,1754920262354,-460.0,0.0002,2]
[378594587,1754920262363,-859.26,0.0002,2]
[378594588,1754920262373,-525.14,0.0002,2]
[378594589,1754920262383,-667.57,0.0002,2]
[378594590,1754920262392,-460.0,0.0002,2]
[378594591,1754920262402,-460.0,0.0002,2]
[378594592,1754920262411,-748.51,0.0002,2]
[378594593,1754920262421,-460.0,0.0002,2]
[378594594,1754920262433,-694.07,0.0002,2]
[378594595,1754920262442,-498.81,0.0002,2]
[378594596,1754920262452,-543.53,0.0002,2]
[378594597,1754920262461,-460.0,0.0002,2]
[378594598,1754920262471,-584.62,0.0002,2]
[378594599,1754920262482,-460.0,0.0002,2]
[378594600,1754920262491,-479.96,0.0002,2]
[378594601,1754920262502,-460.0,0.0002,2]
[378594602,1754920262511,-3193.47,0.0002,2]
[378594603,1754920262520,-3589.11,0.0002,2]
[378594604,1754920262530,-3148.71,0.0002,2]
[378594605,1754920262539,-460.0,0.0002,2]
[378594606,1754920262549,-1050.86,0.0002,2]
[378594607,1754920262558,-649.02,0.0002,2]
[378594608,1754920262568,-747.02,0.0002,2]
[378594609,1754920262577,-460.0,0.0002,2]
[378594610,1754920262586,-460.0,0.0002,2]
[378594611,1754920262597,-2499.24,0.0002,2]
[378594612,1754920262610,-460.0,0.0002,2]
[378594613,1754920262619,-707.8,0.0002,2]
[378594614,1754920262628,-1153.31,0.0002,2]
[378594615,1754920262638,-1923.79,0.0002,2]
[378594616,1754920262647,-812.58,0.0002,2]
[378594617,1754920262657,-460.0,0.0002,2]
[378594618,1754920262667,-460.0,0.0002,2]
[378594619,1754920262680,-2213.59,0.0002,2]
[378594620,1754920262692,-460.0,0.0002,2]
[378594621,1754920262703,-460.0,0.0002,2]
[378594622,1754920262712,-460.0,0.0002,2]
[378594623,1754920262722,-460.0,0.0002,2]
[378594624,1754920262732,-151.0,0.0002,2]
[378594625,1754920262742,-460.0,0.0002,2]
[378594626,1754920262752,-460.0,0.0002,2]
[378594627,1754920262762,-806.04,0.0002,2]
[378594628,1754920262772,-151.0,0.0002,2]
[378594629,1754920262782,-460.0,0.0002,2]
[378594630,1754920262792,-233.748906,0.0002,2]
[378594631,1754920262802,-460.0,0.0002,2]
[378594632,1754920262812,-789.05,0.0002,2]
[378594633,1754920262822,-233.748906,0.0002,2]
[378594634,1754920262832,-460.0,0.0002,2]
[378594635,1754920262841,-460.0,0.0002,2]
[378594636,1754920262851,-460.0,0.0002,2]
[378594637,1754920262860,-460.0,0.0002,2]
[378594638,1754920262869,-616.13800462,0.0002,4]
[378594639,1754920263140,-460.02947924,0.00019178,2]
[378594640,1754920263149,-460.0,0.00019178,2]
[378594641,1754920263159,-3334.22282075,0.0002,4]
[378594642,1754920264175,-460.0,0.00019178,2]
[378594643,1754920264191,-151.0,0.00019726,2]
[378594644,1754920264201,-49.63917463,0.0002,4]
[378594645,1754920264211,-983.81,0.0002,2]
[378594646,1754920264220,-1091.54,0.0002,2]
[378594647,1754920264230,-10030.27626475,0.0002,2]
[378594648,1754920264242,-721.25490685,0.0002,2]
[378594649,1754920264254,-453.1188284,0.0002,2]
[378594650,1754920264271,-399.3911716,0.0002,2]
[378594651,1754920264283,-60.6088284,0.0002,2]
[378594652,1754920264293,-151.0,0.0002,2]
[378594653,1754920264303,-167.47857512,0.0002,2]
[378594654,1754920264588,-460.0,0.00019178,2]
[378594655,1754920264598,-460.0,0.00019178,2]